bitfinex-derivatives/quotes_SOLF0:USTF0_20250818
["timestamp","ask_amount","ask_price","bid_price","bid_amount"]
[1755548415645,187.03,183.36,183.3,5.4528]
[1755548415835,3.89462325,183.35,183.3,5.4528]
[1755548416037,187.03,183.36,183.3,5.4528]
[1755548416227,2.97,183.34,183.3,8.6128]
[1755548416636,0.03662523,183.35,183.31,3.16]
[1755548416842,3.00662523,183.35,183.31,3.16]
[1755548417537,0.03662523,183.35,183.32,3.16]
[1755548417841,0.03662523,183.35,183.34,3.16]
[1755548418245,2.97,183.39,183.34,3.16]
[1755548418443,3.89871904,183.38,183.35,5.4513]
[1755548418634,2.97,183.39,183.36,3.16]
[1755548418838,3.89844239,183.38,183.36,3.16]
[1755548419038,0.0366425,183.38,183.36,8.611]
[1755548419242,0.0366425,183.38,183.31,3.83001937]
[1755548419450,3.0066425,183.38,183.32,3.16]
[1755548419942,3.89890012,183.37,183.3,3.83001937]
[1755548420146,3.89890012,183.36,183.3,3.83001937]
[1755548420341,0.03527532,183.37,183.31,5.4525]
[1755548420543,2.97,183.35,183.31,8.6125]
[1755548422040,2.97,183.35,183.32,8.6123]
[1755548422341,0.03527532,183.37,183.32,8.6123]
[1755548422541,2.94527532,183.37,183.32,8.6123]
[1755548422745,2.91,183.36,183.32,8.6123]
[1755548423035,0.03527532,183.37,183.31,3.1]
[1755548423240,0.03527532,183.37,183.33,3.83001937]
[1755548423443,0.03527532,183.37,183.34,5.4516]
[1755548423747,0.03527532,183.37,183.35,3.1]
[1755548423941,0.03527532,183.37,183.33,9.28191937]
[1755548424144,2.94527532,183.37,183.33,12.38191937]
[1755548425857,2.94527532,183.37,183.34,5.4518]
[1755548426044,2.94527532,183.37,183.34,8.5518]
[1755548426244,0.03527532,183.37,183.36,3.1]
[1755548426550,0.03527532,183.37,183.36,12.38121937]
[1755548428456,366.38,183.44,183.36,3.83001937]
[1755548428643,3.94033534,183.43,183.37,3.1]
[1755548428847,366.38,183.44,183.37,3.1]
[1755548429049,3.94033399,183.43,183.37,3.1]
[1755548429245,366.38,183.44,183.37,3.1]
[1755548429549,6.84950161,183.43,183.39,5.45]
[1755548429850,2.91,183.43,183.39,8.55]
[1755548430043,366.38,183.44,183.4,8.55]
[1755548430244,134.02,183.45,183.39,3.8651618]
[1755548430541,134.02,183.45,183.42,8.5493]
[1755548430744,134.02,183.45,183.4,3.1]
[1755548430945,134.02,183.45,183.42,0.0383681]
[1755548431149,134.02,183.45,183.43,8.5489]
[1755548431362,134.05869578,183.45,183.43,3.1]
[1755548432041,134.05869578,183.45,183.42,3.86838747]
[1755548432238,134.05869578,183.45,183.42,6.96838747]
[1755548432449,0.03869578,183.45,183.42,6.96838747]
[1755548432644,0.03869578,183.45,183.42,12.41768747]
[1755548432844,2.94869578,183.45,183.42,9.31768747]
[1755548433046,0.03869578,183.45,183.42,0.0383681]
[1755548433452,0.03869578,183.45,183.42,3.1383681]
[1755548433650,2.94869578,183.45,183.42,0.0383681]
[1755548433859,2.91,183.44,183.42,0.0383681]
[1755548434152,0.03869578,183.45,183.43,3.1]
[1755548434551,0.03869578,183.45,183.42,5.4876681]
[1755548434750,0.03869578,183.45,183.42,8.5876681]
[1755548435955,0.03869578,183.45,183.43,8.549]
[1755548438556,0.03869578,183.45,183.43,3.1]
[1755548439250,0.03869578,183.45,183.42,5.4876681]
[1755548439652,0.03869578,183.45,183.42,8.5876681]
[1755548440156,2.94869578,183.45,183.42,8.5876681]
[1755548440357,2.94869578,183.45,183.42,3.1383681]
[1755548446354,2.91,183.44,183.42,0.0383681]
[1755548448362,0.03869578,183.45,183.42,3.1383681]
[1755548448567,2.94869578,183.45,183.42,3.1383681]
[1755548449458,2.91,183.44,183.42,3.1383681]
[1755548452766,2.95,183.43,183.42,0.0383681]
[1755548453776,0.03869578,183.45,183.44,3.14]
[1755548454075,52.95,183.51,183.44,3.14]
[1755548454076,2.95,183.51,183.44,3.14]
[1755548454264,133.9,183.51,183.47,3.83001937]
[1755548454575,2.95,183.5,183.47,6.97001937]
[1755548454976,2.95,183.5,183.47,12.41771937]
[1755548455180,2.95,183.5,183.47,12.45496127]
[1755548456469,2.95,183.5,183.48,5.4475]
[1755548456670,133.9,183.51,183.48,8.5875]
[1755548456873,136.85,183.51,183.48,8.5875]
[1755548457179,2.95,183.5,183.48,3.14]
[1755548457369,2.95,183.5,183.47,9.31506127]
[1755548457986,2.95,183.5,183.47,12.45506127]
[1755548459274,133.9,183.51,183.48,8.5876]
[1755548459979,136.85,183.51,183.48,8.5876]
[1755548460279,52.95,183.57,183.5,6.97001937]
[1755548460483,3.93206879,183.56,183.5,6.97001937]
[1755548460775,2.95,183.55,183.52,5.4462]
[1755548461281,2.95,183.54,183.51,5.48142149]
[1755548461481,2.95,183.54,183.51,8.62142149]
[1755548462588,133.86,183.56,183.53,3.14]
[1755548462886,133.86,183.56,183.54,3.14]
[1755548463779,133.86,183.56,183.54,8.5857]
[1755548463975,136.81,183.56,183.52,3.14]
[1755548464187,2.95,183.55,183.51,0.03492149]
[1755548464487,2.95,183.55,183.52,5.4464]
[1755548465179,133.86,183.56,183.51,3.17492149]
[1755548465180,133.86,183.56,183.51,0.03492149]
[1755548465380,3.92926017,183.55,183.51,0.03492149]
[1755548465579,133.86,183.56,183.53,3.14]
[1755548465782,133.86,183.56,183.53,8.5859]
[1755548466480,136.77,183.59,183.53,8.5859]
[1755548466680,2.95,183.57,183.53,8.5859]
[1755548466881,6.87919464,183.56,183.53,8.5859]
[1755548467088,2.95,183.56,183.53,8.5859]
[1755548469489,133.82,183.59,183.54,5.4458]
[1755548469695,2.95,183.57,183.51,3.17492149]
[1755548470290,133.82,183.59,183.51,3.17492149]
[1755548470596,6.88008321,183.58,183.54,8.5858]
[1755548470896,2.95,183.58,183.54,3.14]
[1755548471090,2.95,183.58,183.55,3.14]
[1755548471483,2.95,183.58,183.53,3.83001937]
[1755548471721,2.95,183.56,183.51,0.03492149]
[1755548471884,3.93071646,183.55,183.51,0.03492149]
[1755548472193,2.95,183.52,183.51,0.03492149]
[1755548472599,6.88242559,183.52,183.51,0.03492149]
[1755548474795,6.88242559,183.52,183.45,8.5884]
[1755548474998,2.95,183.5,183.43,3.83001937]
[1755548475198,2.95,183.48,183.42,3.14]
[1755548475398,133.78,183.49,183.44,3.14]
[1755548475600,133.78,183.49,183.43,3.83001937]
[1755548475899,133.78,183.49,183.46,3.14]
[1755548476297,2.95,183.48,183.44,3.1765166]
[1755548476494,133.78,183.49,183.44,3.1765166]
[1755548476696,2.95,183.47,183.44,3.1765166]
[1755548477890,2.95,183.48,183.44,0.0365166]
[1755548478194,2.95,183.46,183.44,0.0365166]
[1755548479699,2.95,183.48,183.44,3.1765166]
[1755548480504,2.95,183.47,183.44,3.1765166]
[1755548481200,2.95,183.47,183.44,8.6252166]
[1755548481403,136.73,183.49,183.46,3.14]
[1755548483100,136.72,183.49,183.45,8.4883]
[1755548484499,133.78,183.49,183.46,3.04]
[1755548484897,136.72,183.49,183.46,3.04]
[1755548486205,136.72,183.49,183.46,8.4882]
[1755548486497,50.0,183.52,183.44,0.0365166]
[1755548486498,50.0,183.52,183.47,3.83001937]
[1755548486703,183.8,183.52,183.49,8.4871]
[1755548486908,133.8,183.52,183.49,8.4871]
[1755548487401,136.74,183.52,183.49,8.5244609]
[1755548489902,133.8,183.52,183.5,8.487]
[1755548490106,133.8,183.52,183.5,3.04]
[1755548490300,136.72,183.55,183.52,3.04]
[1755548490606,136.72,183.55,183.5,3.83001937]
[1755548490607,133.78,183.55,183.53,3.04]
[1755548491201,133.78,183.55,183.5,3.83001937]
[1755548491402,136.72,183.55,183.51,3.04]
[1755548491606,133.78,183.55,183.53,3.04]
[1755548491808,133.78,183.55,183.54,3.04]
[1755548492298,133.78,183.55,183.54,8.4858]
[1755548492497,133.78,183.55,183.54,5.4458]
[1755548492897,133.78,183.55,183.53,5.446]
[1755548495306,133.78,183.55,183.54,5.4458]
[1755548495504,133.78,183.55,183.54,8.4858]
[1755548495805,136.7,183.58,183.54,3.04]
[1755548496003,2.94,183.57,183.54,3.04]
[1755548496309,2.94,183.56,183.53,3.83001937]
[1755548496501,133.76,183.58,183.54,0.04128172]
[1755548496700,2.94,183.55,183.54,0.04128172]
[1755548499013,133.76,183.58,183.54,0.04128172]
[1755548499212,6.88007244,183.57,183.54,0.04128172]
[1755548499409,2.94,183.57,183.54,0.04128172]
[1755548500216,2.94,183.57,183.54,5.48708172]
[1755548500912,2.94,183.57,183.55,5.4455]
[1755548501112,2.94,183.57,183.54,3.08128172]
[1755548501414,2.94,183.57,183.54,8.52698172]
[1755548503714,2.94,183.57,183.55,5.4455]
[1755548504222,133.76,183.58,183.56,5.4452]
[1755548504410,133.76,183.58,183.56,8.4852]
[1755548505320,133.76,183.58,183.57,5.4449]
[1755548505924,133.76,183.58,183.57,8.4849]
[1755548511416,136.7,183.58,183.56,5.4452]
[1755548511615,2.94,183.57,183.54,0.04128172]
[1755548511816,2.94,183.55,183.54,0.04128172]
[1755548512723,2.94,183.55,183.54,5.48708172]
[1755548513829,2.94,183.55,183.54,0.04128172]
[1755548516524,2.94,183.55,183.54,5.48708172]
[1755548519126,133.76,183.58,183.54,5.48708172]
[1755548519526,2.92,183.57,183.54,8.64708172]
[1755548519922,2.92,183.57,183.55,5.4455]
[1755548520323,133.76,183.58,183.54,3.20128172]
[1755548520324,133.76,183.58,183.54,0.04128172]
[1755548520623,133.76,183.58,183.56,3.16]
[1755548520826,136.68,183.58,183.56,8.6051]
[1755548521630,136.68,183.58,183.56,5.4451]
[1755548524133,2.92,183.57,183.56,5.4451]
[1755548524332,2.92,183.56,183.55,5.4454]
[1755548524529,2.92,183.57,183.54,0.04128172]
[1755548524728,2.92,183.55,183.54,0.04128172]
[1755548525029,136.54,183.55,183.54,0.04128172]
[1755548527133,140.47355773,183.55,183.54,0.04128172]
[1755548527325,140.47355773,183.55,183.47,6.99001937]
[1755548527527,2.92,183.53,183.44,6.99001937]
[1755548527724,2.92,183.51,183.44,3.16]
[1755548527924,2.92,183.49,183.44,3.16]
[1755548528226,2.92,183.47,183.41,12.43961937]
[1755548528426,2.92,183.47,183.41,6.99001937]
[1755548528626,2.92,183.47,183.39,5.4502]
[1755548528826,2.92,183.45,183.39,5.4502]
[1755548529022,133.62,183.44,183.38,6.99001937]
[1755548529732,133.62,183.44,183.38,12.44051937]
[1755548529934,133.62,183.44,183.38,6.99001937]
[1755548530731,133.62,183.44,183.38,3.16]
[1755548533133,2.92,183.43,183.38,3.16]
[1755548533432,2.92,183.42,183.38,3.16]
[1755548535127,2.92,183.42,183.39,3.16]
[1755548535331,2.95526837,183.42,183.39,3.16]
[1755548541530,2.95526837,183.42,183.38,5.4506]
[1755548541838,2.95526837,183.42,183.4,3.16]
[1755548542129,2.95526837,183.42,183.38,5.4506]
[1755548542130,2.95526837,183.42,183.39,2.9]
[1755548545734,2.99526837,183.42,183.39,2.9]
[1755548546240,2.99526837,183.42,183.38,5.4506]
[1755548546440,2.96,183.41,183.38,8.3506]
[1755548546929,2.96,183.41,183.39,2.9]
[1755548551753,2.96,183.41,183.29,2.9]
[1755548552034,2.96,183.41,183.33,3.83001937]
[1755548552239,2.96,183.41,183.34,2.9]
[1755548552434,2.96,183.41,183.35,5.4512]
[1755548552737,2.96,183.41,183.34,2.9]
[1755548553639,0.03526996,183.39,183.34,2.9]
[1755548553836,0.03526996,183.39,183.33,3.83001937]
[1755548553837,2.99526996,183.39,183.36,2.9]
[1755548554029,2.99526996,183.39,183.37,2.9]
[1755548555838,2.96,183.38,183.36,5.451]
[1755548556043,2.96,183.38,183.36,8.351]
[1755548556743,2.99526996,183.39,183.36,8.351]
[1755548558440,2.99526996,183.39,183.37,2.44113074]
[1755548558946,2.96,183.38,183.37,2.44113074]
[1755548559149,0.03526996,183.39,183.35,2.44113074]
[1755548559349,2.96,183.38,183.35,5.34113074]
[1755548559848,2.99440979,183.38,183.35,5.34113074]
[1755548560345,2.99440979,183.38,183.35,8.3515]
[1755548562950,0.03440979,183.38,183.35,8.3515]
[1755548563249,2.96,183.37,183.35,8.3515]
[1755548564055,2.96,183.37,183.32,3.81492731]
[1755548564349,2.96,183.37,183.32,6.71492731]
[1755548564549,2.96,183.36,183.33,2.9]
[1755548565147,0.03440979,183.38,183.33,8.352]
[1755548565345,2.96,183.36,183.33,8.352]
[1755548565546,2.96,183.35,183.32,3.81492731]
[1755548565745,2.96,183.35,183.32,9.26712731]
[1755548565953,2.96,183.35,183.32,12.16712731]
[1755548568251,2.96,183.34,183.32,12.16712731]
[1755548568443,2.96,183.33,183.31,2.9]
[1755548569045,2.96,183.33,183.3,8.3529]
[1755548569561,2.96,183.32,183.3,2.9]
[1755548569852,2.96,183.32,183.29,12.16812731]
[1755548570154,2.96,183.32,183.29,6.71492731]
[1755548570453,2.96,183.32,183.3,2.9]
[1755548570952,2.99734175,183.34,183.31,2.9]
[1755548571164,2.96,183.33,183.31,2.9]
[1755548572349,3.03734175,183.34,183.31,8.3527]
[1755548572654,3.93469908,183.33,183.31,8.3527]
[1755548572955,3.03734175,183.34,183.31,8.3527]
[1755548573256,3.93527027,183.33,183.31,8.3527]
[1755548573441,3.03734175,183.34,183.31,8.3527]
[1755548573645,3.93581313,183.33,183.31,8.3527]
[1755548573845,3.03734175,183.34,183.31,8.3527]
[1755548574050,3.93581313,183.33,183.31,8.3527]
[1755548574355,3.03734175,183.34,183.31,8.3527]
[1755548574554,3.93535653,183.33,183.31,8.3527]
[1755548574853,3.03734175,183.34,183.31,8.3527]
[1755548575054,3.93537933,183.33,183.32,8.4324]
[1755548575256,0.03734175,183.34,183.32,5.4524]
[1755548575451,0.03734175,183.34,183.33,2.98]
[1755548575647,3.97263965,183.34,183.33,2.98]
[1755548576256,3.97263965,183.34,183.33,8.4321]
[1755548576455,0.03734175,183.34,183.33,8.4321]
[1755548577154,372.48358758,183.44,183.33,2.98]
[1755548577356,11.38080977,183.43,183.36,2.98]
[1755548577555,8.38080977,183.42,183.36,2.98]
[1755548577860,6.93640696,183.41,183.38,8.4304]
[1755548578057,3.93640696,183.4,183.38,8.4304]
[1755548578355,3.0,183.41,183.39,5.4502]
[1755548578544,369.38,183.44,183.39,2.98]
[1755548578744,6.9374916,183.43,183.4,2.98]
[1755548578958,3.9374916,183.42,183.4,2.98]
[1755548579156,3.9374916,183.41,183.4,2.98]
[1755548579556,3.9374916,183.41,183.4,8.4298]
[1755548579959,50.0,183.45,183.4,2.98]
[1755548580154,3.93569807,183.44,183.39,2.98]
[1755548580458,3.93569807,183.43,183.41,2.98]
[1755548580658,3.93569807,183.42,183.41,2.98]
[1755548580860,3.0,183.41,183.4,5.4499]
[1755548581256,3.0,183.41,183.38,6.83589242]
[1755548581562,3.0,183.41,183.39,8.43]
[1755548582157,133.6,183.47,183.4,5.45]
[1755548582365,3.0,183.43,183.4,5.45]
[1755548582564,3.0,183.45,183.4,5.45]
[1755548582861,50.0,183.46,183.4,5.45]
[1755548582862,3.0,183.43,183.4,5.45]
[1755548583163,3.0,183.45,183.41,8.4297]
[1755548583362,3.0,183.45,183.39,2.98]
[1755548583554,50.0,183.46,183.43,2.98]
[1755548583751,53.0,183.46,183.43,2.98]
[1755548583966,3.0,183.46,183.43,2.98]
[1755548584366,3.0,183.46,183.43,3.01787013]
[1755548585361,3.0,183.46,183.44,5.4486]
[1755548586671,133.6,183.47,183.45,2.98]
[1755548586962,133.6,183.47,183.43,0.03787013]
[1755548586963,136.54,183.52,183.46,2.98]
[1755548587164,3.93468213,183.51,183.47,5.4478]
[1755548587460,133.54,183.52,183.47,8.4278]
[1755548587662,3.0,183.5,183.47,8.46742601]
[1755548589969,3.0,183.5,183.48,2.98]
[1755548590170,136.54,183.52,183.49,8.4273]
[1755548590560,136.54,183.52,183.47,6.83455332]
[1755548590561,3.0,183.51,183.47,6.83455332]
[1755548590863,3.0,183.51,183.48,5.4474]
[1755548591068,3.0,183.51,183.48,8.4274]
[1755548591891,3.0,183.5,183.47,0.03962601]
[1755548592075,133.54,183.52,183.47,0.03962601]
[1755548592281,3.0,183.48,183.47,0.03962601]
[1755548593177,3.0,183.5,183.47,0.03962601]
[1755548593478,3.0,183.49,183.47,0.03962601]
[1755548594375,133.54,183.52,183.47,5.48742601]
[1755548594579,3.0,183.51,183.47,0.03962601]
[1755548594875,3.0,183.49,183.47,0.03962601]
[1755548595676,3.0,183.51,183.47,0.03962601]
[1755548597483,50.0,183.5,183.47,0.03962601]
[1755548597676,3.0,183.49,183.47,0.03962601]
[1755548597874,50.0,183.5,183.47,0.03962601]
[1755548598077,3.0,183.48,183.47,0.03962601]
[1755548601987,50.0,183.5,183.47,0.03962601]
[1755548602190,50.0,183.5,183.48,3.07]
[1755548602378,53.12,183.5,183.47,3.10962601]
[1755548602883,50.0,183.5,183.47,0.03962601]
[1755548603184,3.12,183.48,183.47,0.03962601]
[1755548609586,3.12,183.47,183.4,3.07]
[1755548609783,3.12,183.45,183.4,3.07]
[1755548610086,3.12,183.44,183.4,3.07]
[1755548610693,133.42,183.46,183.4,5.45]
[1755548610894,0.04044628,183.44,183.41,3.07]
[1755548611081,0.04044628,183.44,183.42,3.07]
[1755548614289,3.16044628,183.44,183.35,3.81492731]
[1755548614489,3.16044628,183.44,183.36,3.07]
[1755548615291,3.16044628,183.44,183.38,5.4506]
[1755548617190,3.16044628,183.44,183.38,8.5206]
[1755548617391,3.16044628,183.44,183.38,3.07]
[1755548617691,7.04259055,183.43,183.35,3.07]
[1755548617988,3.12,183.43,183.35,3.07]
[1755548618386,0.0360887,183.41,183.35,8.5214]
[1755548618585,3.1560887,183.41,183.35,3.07]
[1755548620390,3.12,183.39,183.35,3.07]
[1755548620585,3.12,183.39,183.34,5.4518]
[1755548620787,3.12,183.39,183.36,3.07]
[1755548622695,53.81492731,183.44,183.36,3.07]
[1755548622886,3.12,183.42,183.36,3.07]
[1755548623086,3.12,183.39,183.36,3.07]
[1755548623289,3.12,183.41,183.36,3.07]
[1755548623593,0.03439882,183.39,183.34,5.4516]
[1755548623797,0.03439882,183.39,183.36,3.07]
[1755548624181,3.15439882,183.39,183.36,3.07]
[1755548625689,3.12,183.38,183.36,3.07]
[1755548625887,3.12,183.37,183.34,3.07]
[1755548626292,3.12,183.36,183.33,3.07]
[1755548626494,3.12,183.38,183.29,3.07]
[1755548626796,3.12,183.38,183.3,5.4528]
[1755548627386,0.03460726,183.36,183.3,5.4528]
[1755548627792,3.15460726,183.36,183.29,8.5231]
[1755548631106,3.15460726,183.36,183.3,5.4529]
[1755548631300,3.15460726,183.36,183.29,3.07]
[1755548632205,3.15460726,183.36,183.31,5.4526]
[1755548632505,2.95460726,183.36,183.32,3.01]
[1755548633505,2.92,183.35,183.32,3.01]
[1755548637208,0.03460726,183.36,183.3,3.01]
[1755548637406,2.92,183.33,183.3,3.01]
[1755548638002,2.96055219,183.33,183.3,3.01]
[1755548639804,2.92,183.32,183.29,3.01]
[1755548640305,2.92,183.32,183.3,3.01]
[1755548640706,0.04055219,183.33,183.28,5.4535]
[1755548640902,0.04055219,183.33,183.25,3.81492731]
[1755548640903,2.96055219,183.33,183.27,3.01]
[1755548641210,2.92,183.31,183.24,3.01]
[1755548641410,136.34,183.31,183.24,3.01]
[1755548641604,136.34,183.31,183.24,8.4647]
[1755548642002,2.92,183.28,183.25,3.01]
[1755548644512,2.92,183.27,183.25,3.01]
[1755548644705,2.92,183.28,183.2,3.01]
[1755548645613,0.03511708,183.26,183.2,3.01]
[1755548646210,2.92,183.24,183.2,3.01]
[1755548647015,2.92,183.23,183.2,3.01]
[1755548647213,2.92,183.23,183.2,8.4659]
[1755548648321,2.92,183.24,183.2,3.01]
[1755548648620,0.03511708,183.26,183.2,3.01]
[1755548648818,2.92,183.22,183.18,5.4564]
[1755548649122,2.95511708,183.26,183.15,3.81492731]
[1755548649417,2.92,183.26,183.16,3.01]
[1755548649616,0.04039628,183.21,183.16,3.01]
[1755548649812,0.04039628,183.21,183.15,6.82492731]
[1755548650314,0.04039628,183.21,183.18,5.4565]
[1755548650619,2.92,183.2,183.17,3.01]
[1755548651304,2.92,183.2,183.13,3.81492731]
[1755548651305,2.92,183.19,183.16,3.01]
[1755548651916,2.92,183.19,183.16,8.4671]
[1755548652116,2.92,183.19,183.17,3.01]
[1755548653412,0.03531196,183.2,183.14,3.01]
[1755548654116,0.03531196,183.2,183.15,5.4572]
[1755548654421,0.03531196,183.2,183.14,3.01]
[1755548654618,2.95531196,183.2,183.14,3.01]
[1755548655017,2.95531196,183.2,183.11,3.01]
[1755548655421,2.92,183.2,183.11,3.01]
[1755548655612,2.92,183.2,183.1,3.01]
[1755548655819,0.04130143,183.17,183.09,3.81492731]
[1755548656019,2.92,183.15,183.12,3.01]
[1755548656218,2.92,183.16,183.13,3.01]
[1755548656422,0.04130143,183.17,183.13,3.01]
[1755548656722,2.92,183.15,183.12,8.4682]
[1755548659121,2.92,183.15,183.13,5.458]
[1755548659916,0.04130143,183.17,183.09,3.81492731]
[1755548660118,0.04130143,183.17,183.13,3.01]
[1755548660320,0.04130143,183.17,183.15,3.01]
[1755548660519,2.92,183.2,183.16,8.4671]
[1755548660822,0.03441329,183.18,183.16,8.4671]
[1755548661625,0.03441329,183.18,183.17,3.01]
[1755548661816,0.03441329,183.18,183.17,8.4668]
[1755548665026,0.03441329,183.18,183.16,5.457]
[1755548665321,0.03441329,183.18,183.16,8.507]
[1755548665519,3.21441329,183.18,183.15,5.4573]
[1755548665725,3.21441329,183.18,183.15,8.5073]
[1755548667629,0.03441329,183.18,183.16,3.05]
[1755548667926,0.03441329,183.18,183.17,3.05]
[1755548669323,0.03441329,183.18,183.17,8.5068]
[1755548671231,0.03441329,183.18,183.17,3.05]
[1755548671620,3.21441329,183.18,183.15,5.4573]
[1755548671935,3.21441329,183.18,183.15,8.5073]
[1755548672231,0.03441329,183.18,183.16,3.05]
[1755548672528,3.21441329,183.18,183.16,3.05]
[1755548672731,3.18,183.18,183.16,3.05]
[1755548674129,3.21561642,183.19,183.16,3.05]
[1755548674325,0.03561642,183.19,183.16,3.05]
[1755548674526,3.21561642,183.19,183.16,3.05]
[1755548674933,0.03561642,183.19,183.12,3.05]
[1755548675828,0.03561642,183.19,183.16,5.4569]
[1755548676131,0.03561642,183.19,183.17,3.05]
[1755548676834,3.21561642,183.19,183.17,3.05]
[1755548680439,3.21561642,183.19,183.17,8.5068]
[1755548680938,0.03561642,183.19,183.11,3.81492731]
[1755548681134,0.03561642,183.19,183.18,8.5065]
[1755548681528,0.03561642,183.19,183.18,3.05]
[1755548681731,0.03561642,183.19,183.13,6.86492731]
[1755548682125,3.18,183.2,183.16,5.4571]
[1755548682326,3.18,183.2,183.16,8.5071]
[1755548682538,0.03449867,183.18,183.17,3.05]
[1755548682740,0.03449867,183.18,183.17,8.5068]
[1755548683238,0.03449867,183.18,183.17,5.4568]
[1755548683439,0.03449867,183.18,183.17,8.5068]
[1755548683844,136.62,183.25,183.21,3.05]
[1755548683845,3.18,183.25,183.21,3.05]
[1755548684029,3.18,183.25,183.22,3.05]
[1755548684435,133.44,183.28,183.21,3.05]
[1755548684643,3.18,183.26,183.18,3.05]
[1755548684836,3.18,183.24,183.18,3.05]
[1755548685029,7.11976421,183.23,183.19,3.05]
[1755548685232,3.93976421,183.22,183.21,3.05]
[1755548685433,3.18,183.25,183.21,8.5056]
[1755548685642,7.11979376,183.24,183.17,3.05]
[1755548685849,3.93979376,183.23,183.17,3.05]
[1755548686143,3.18,183.25,183.17,3.05]
[1755548686341,3.94033926,183.24,183.17,3.05]
[1755548686539,3.18,183.25,183.17,3.05]
[1755548686739,3.18,183.23,183.2,8.5059]
[1755548687234,3.18,183.23,183.21,3.05]
[1755548688342,50.0,183.27,183.19,5.4561]
[1755548688546,3.18,183.22,183.19,5.4561]
[1755548689440,50.0,183.27,183.19,5.4561]
[1755548689642,3.18,183.25,183.19,5.4561]
[1755548689842,3.18,183.23,183.19,5.4561]
[1755548690044,3.18,183.21,183.19,5.4561]
[1755548691743,3.18,183.21,183.18,5.4564]
[1755548691946,3.18,183.21,183.18,8.5064]
[1755548692238,50.0,183.26,183.18,5.4564]
[1755548692549,3.05,183.24,183.15,2.93]
[1755548692847,3.05,183.22,183.15,2.93]
[1755548693047,3.05,183.19,183.15,2.93]
[1755548693253,136.45,183.22,183.16,2.93]
[1755548693448,3.05,183.27,183.19,3.81492731]
[1755548693650,3.93658859,183.26,183.2,2.93]
[1755548693854,3.93658859,183.25,183.22,5.4551]
[1755548694152,3.05,183.26,183.22,8.3851]
[1755548694342,3.93667161,183.25,183.22,5.4551]
[1755548694546,3.05,183.24,183.22,5.4551]
[1755548694750,3.05,183.24,183.19,6.74492731]
[1755548694949,3.05,183.22,183.19,2.93]
[1755548695149,3.05,183.27,183.2,5.4558]
[1755548695449,11.44977734,183.26,183.2,5.4558]
[1755548695656,3.05,183.24,183.2,8.3858]
[1755548695952,3.93559783,183.23,183.17,3.81492731]
[1755548696146,3.05,183.27,183.18,2.93]
[1755548696348,3.93541336,183.26,183.18,2.93]
[1755548696552,3.93541336,183.26,183.11,9.12346014]
[1755548696553,3.93541336,183.25,183.22,8.3852]
[1755548697955,3.93541336,183.25,183.23,8.3848]
[1755548698154,3.05,183.27,183.24,2.93]
[1755548698460,3.93349377,183.26,183.24,8.3847]
[1755548698758,3.05,183.27,183.24,8.3847]
[1755548698953,3.9337171,183.26,183.24,8.3847]
[1755548699155,3.05,183.27,183.24,8.3847]
[1755548699351,3.9337171,183.26,183.24,8.3847]